Cogmind - Beta 15 @@@ ROGUE MODE // 2025.09.15 @ 19:06:40 Player: Grose Result: Destroyed by P-80 Master with Gamma Rifle Performance ------------- Evolutions (9) 4500 Regions Visited (12) 2400 Robots Destroyed (53) 265 Value Destroyed (1467) 1467 Prototype IDs (38) 760 Alien Tech Used (0) 0 Bonus (321) 321 TOTAL SCORE: 9713 Bonus ------- Follower Combat Kills 21 Aligned with FarCom 300 Cogmind --------- Core Integrity 0/1600 Matter 7/300 Energy 56/100 System Corruption 28% Temperature Cool (0) Movement Flying (40) Location -1/Access Parts ------- > --- POWER (2) -------- (None) > --- PROPULSION (7) --- Xenon Bombardment Thruster > --- UTILITY (12) ----- (None) > --- WEAPON (4) ------- (None) > --- INVENTORY (5) ---- Micro Antimatter Reactor Xenon Bombardment Thruster Advanced Hacking Suite Peak State ------------ > --- POWER ------------ Micro Nuclear Core Light Fission Core > --- PROPULSION ------- Improved Flight Unit Improved Flight Unit Cooled VTOL Module Nuclear Pulse Array > --- UTILITY ---------- Coolant Network Medium Storage Unit Advanced Weight Redist. System Advanced Signal Interpreter Advanced Terrain Scanner Advanced Terrain Scan Processor Advanced ECM Suite Improved Cloaking Device Advanced Hacking Suite System Shield Advanced System Restoration Module > --- WEAPON ----------- Katana > --- INVENTORY -------- Light Antimatter Reactor Advanced Weight Redist. System Transmission Jammer Jamming Amplifier ECM Suite Hardlight Generator Field Laser Micro-nuke Launcher Improved Remote Datajack Vibroblade [Rating: 101] Favorites ----------- Power Ion Engine Engine Ion Engine Power Core Light Nuclear Core Reactor Quantum Reactor Propulsion Light Treads Treads Light Treads Leg Thunder Leg Wheel Compact Wheel Hover Unit Antigrav Array Flight Unit Improved Flight Unit Utility Large Storage Unit Device Improved Terrain Scanner Storage Large Storage Unit Processor Advanced Terrain Scan Processor Hackware Hacking Suite Protection Light Armor Plating Weapon Katana Energy Gun Small Laser Energy Cannon Beam Cannon Ballistic Cannon Heavy Gauss Cannon Launcher Grenade Launcher Special Weapon Mining Laser Slashing Weapon Katana Build | -11 -10 -10 -10 -9 -8 -7 -6 -5 -4 -3 -2 -1 ------- Run | Yrd Mat Min Exi Min Mat Fac Fac Fac Fac Res Res Acc Slots Evolved 18 | . . . . . 4 2 2 2 2 2 2 2 Power 1 | . . . . . . . . 1 . . . . Propulsion 5 | . . . . . 2 . . . . 1 1 1 Utility 10 | . . . . . 2 2 2 1 2 1 . . Weapon 2 | . . . . . . . . . . . 1 1 Parts Attached 104 | 7 7 2 . 5 15 12 10 6 6 12 9 13 Power 11 | 1 . . . . 2 . 2 2 . 2 1 1 Engine 1 | 1 . . . . . . . . . . . . Core 5 | . . . . . 2 . 1 2 . . . . Reactor 5 | . . . . . . . 1 . . 2 1 1 Propulsion 29 | 2 . . . 2 5 7 . . 1 3 4 5 Treads 7 | 2 . . . 2 3 . . . . . . . Leg 1 | . . . . . . . . . . . 1 . Wheel 1 | . . . . . 1 . . . . . . . Hover 5 | . . . . . 1 . . . . . . 4 Flight 15 | . . . . . . 7 . . 1 3 3 1 Utility 39 | 2 3 1 . 2 5 5 6 3 4 3 4 1 Device 21 | 1 1 1 . 2 2 1 5 1 3 2 2 . Storage 3 | 1 1 . . . . 1 . . . . . . Processor 9 | . 1 . . . 2 2 1 . . 1 1 1 Hackware 5 | . . . . . . 1 . 2 1 . 1 . Protection 1 | . . . . . 1 . . . . . . . Artifact . | . . . . . . . . . . . . . Weapon 25 | 2 4 1 . 1 3 . 2 1 1 4 . 6 Energy Gun 8 | 2 1 . . . 2 . . . . 2 . 1 Energy Cannon 5 | . 1 . . . 1 . . . . 1 . 2 Ballistic Gun . | . . . . . . . . . . . . . Ballistic Cannon 1 | . . . . . . . . . . . . 1 Launcher 4 | . 1 1 . . . . . . . 1 . 1 Special Weapon 4 | . 1 . . . . . 1 1 . . . 1 Impact Weapon . | . . . . . . . . . . . . . Slashing Weapon 3 | . . . . 1 . . 1 . 1 . . . Piercing Weapon . | . . . . . . . . . . . . . Special Melee Weapon . | . . . . . . . . . . . . . Unidentified Prototypes 12 | . . . . . 1 1 1 . 1 3 5 . Parts Lost 37 | . . . . 5 . . 3 4 . 13 . 12 Power 5 | . . . . . . . 1 1 . 2 . 1 Propulsion 11 | . . . . 2 . . . 1 . 2 . 6 Utility 12 | . . . . . . . 1 2 . 6 . 3 Weapon 9 | . . . . 3 . . 1 . . 3 . 2 Highest Loss Streak 9 | . . . . 3 . . 1 4 . 7 . 9 To Critical Strikes . | . . . . . . . . . . . . . Average Backups 11 | 3 12 14 15 13 14 10 8 9 9 8 4 3 Power . | . 1 1 1 1 1 1 1 1 . . . . Propulsion 2 | 1 4 3 3 2 3 2 2 1 . . . . Utility 5 | . 4 8 8 7 8 5 3 4 4 4 1 . Weapon 1 | 1 1 2 3 1 2 1 1 2 3 2 . 1 Tool/Special . | . . . . . . . . . . . . . Unused Backups 28 | . 11 . . . 6 2 . 3 . . 3 3 Power 2 | . 1 . . . . . . . . . . 1 Propulsion 9 | . 5 . . . 2 . . 1 . . . 1 Utility 11 | . 4 . . . 1 2 . 2 . . 1 1 Weapon 6 | . 1 . . . 3 . . . . . 2 . Tool/Special . | . . . . . . . . . . . . . Average Slot Usage (%) 88 | . 99 100 100 97 95 91 93 96 80 67 13 20 Engine 4 | . 14 14 14 14 . . . . . . . . Core 4 | . . . . . 8 7 5 10 10 7 . . Treads 16 | . 28 28 28 26 27 1 . . . . . . Wheel 1 | . . . . . 5 . . . . . . . Flight 8 | . . . . . . 28 26 23 17 15 6 6 Device 16 | . 13 14 14 14 21 10 14 19 21 19 3 1 Storage 8 | . 14 14 14 14 9 7 6 5 5 3 . . Processor 5 | . . . . . 2 19 18 11 10 8 . 1 Hackware 2 | . . . . . . 6 6 11 9 6 2 3 Energy Gun 5 | . 17 1 14 5 5 . . . . . . . Energy Cannon 3 | . 8 14 14 3 2 . . . . . . . Launcher 1 | . . 6 . 9 1 . 4 . . . . . Special Weapon 1 | . 1 5 . . . . . 4 . . . . Slashing Weapon 4 | . . . . 9 9 7 5 5 4 3 . . Peak Build Rating 101 | 7 10 10 11 14 26 42 56 70 83 101 50 78 Average Rating 30 | 5 8 9 10 12 24 39 45 64 70 71 20 45 On Entrance 27 | . 7 9 10 11 13 26 42 56 59 77 10 41 Naked Turns 52 | . . . . . . . . . . 29 . 23 Heaviest Build 41 | 13 32 33 32 33 41 33 23 29 32 35 22 33 Greatest Support 78 | 40 40 40 40 40 63 21 29 29 32 37 23 78 Greatest Overweight (x) 4 | 1 . . . . 2 2 1 . . 4 . 3 Average Overweight (x) . | . . . . . 1 . . . . . . . Largest Inventory Capacity 15 | 8 15 15 15 15 15 15 10 10 10 10 5 5 Average Capacity 12 | 7 14 15 15 15 15 10 10 10 10 9 5 5 Most Carried 15 | 7 15 15 15 15 15 15 10 10 10 10 5 5 Average Carried 11 | 3 12 14 14 13 14 10 8 9 9 8 4 3 Final Capacity 15 | 8 15 15 15 15 15 10 10 10 10 5 5 5 Final Carried 15 | 5 15 15 15 14 15 10 9 9 10 3 3 3 Class Distribution -------------------- 36% | Mutant 15% | Scavenger-Assassin 13% | Scavenger-Scout 13% | Assassin 9% | Hacker-Ninja 3% | Scavenger-Ninja Dominant Class ---------------- Mutant | -10/Materials Mutant | -10/Mines Mutant | -10/Exiles Assassin | -9/Mines Scavenger-Assassin | -8/Materials Scavenger-Scout | -7/Factory Scavenger-Scout | -6/Factory Hacker-Ninja | -5/Factory Hacker-Ninja | -4/Factory Hacker-Ninja | -3/Research Mutant | -2/Research Mutant | -1/Access Resources | -11 -10 -10 -10 -9 -8 -7 -6 -5 -4 -3 -2 -1 ----------- Run | Yrd Mat Min Exi Min Mat Fac Fac Fac Fac Res Res Acc Matter Collected 1585 | 270 88 40 . 331 170 . 71 321 . 55 60 179 Remotely . | . . . . . . . . . . . . . Salvage Created 2123 | 114 458 . . 175 421 . 71 445 . 86 60 293 Parts 122 | 5 30 . . 5 20 . 5 19 . 5 6 27 Haulers Intercepted 2 | . 1 . . . 1 . . . . . . . Recyclers Shooed 4 | . . . . 2 . . . 1 . 1 . . Parts Field Recycled . | . . . . . . . . . . . . . Retrieved Matter . | . . . . . . . . . . . . . Parts Self-Destructed . | . . . . . . . . . . . . . Prevented . | . . . . . . . . . . . . . Kills | -11 -10 -10 -10 -9 -8 -7 -6 -5 -4 -3 -2 -1 ------- Run | Yrd Mat Min Exi Min Mat Fac Fac Fac Fac Res Res Acc Combat Hostiles Destroyed 42 | . 9 . . 15 7 . 2 1 . 4 . 4 Melee 11 | . . . . 1 6 . 2 1 . 1 . . Guns 8 | . 6 . . 1 . . . . . 1 . . Cannons 9 | . 3 . . 1 1 . . . . . . 4 AOE 14 | . . . . 12 . . . . . 2 . . Classes Destroyed 13 | 2 5 . . 2 1 . 1 1 . 1 . . Worker 7 | . . . . . . . . 3 . . 1 3 Tunneler 5 | 2 . . . . . . . 1 . . 1 1 Hauler 2 | . 1 . . . 1 . . . . . . . Recycler 5 | 1 1 . . 1 . . . 2 . . . . Operator 2 | . 1 . . . 1 . . . . . . . Watcher 2 | . 2 . . . . . . . . . . . Swarmer 7 | . 3 . . . . . 1 . . 1 . 2 Cutter 3 | . . . . . . . . . . 3 . . Grunt 13 | . 6 . . 2 5 . . . . . . . Duelist 1 | . . . . 1 . . . . . . . . Sentry 2 | . . . . . 2 . . . . . . . Programmer 4 | . . . . . . . 1 1 . . . 2 Assembled 12 | . . . . 12 . . . . . . . . Best Kill Streak 9 | 2 3 . . 9 3 . 1 4 . 3 1 3 Combat Bots Only 9 | . 3 . . 9 3 . 1 1 . 3 . 2 Max Kills in Single Turn 2 | 1 1 . . 2 1 . 1 1 . 2 1 1 Gunslinging . | . . . . . . . . . . . . . Exploded 2 | . . . . 2 . . . . . 2 . . Melee 1 | . . . . 1 1 . 1 1 . 1 . . Uniques/NPCs Destroyed . | . . . . . . . . . . . . . Combat | -11 -10 -10 -10 -9 -8 -7 -6 -5 -4 -3 -2 -1 -------- Run | Yrd Mat Min Exi Min Mat Fac Fac Fac Fac Res Res Acc Hostile Shots Fired 604 | . 29 17 . 59 37 4 31 26 6 151 3 241 Missed 233 | . 12 5 . 15 8 2 15 15 3 64 . 94 Hits 371 | . 17 12 . 44 29 2 16 11 3 87 3 147 Melee 14 | . . . . 5 . . . 2 . 7 . . Projectile 357 | . 17 12 . 39 29 2 16 9 3 80 3 147 AOE 1 | . . . . . . . . . . 1 . . Critical Strikes 25 | . 1 1 . 1 2 . . 2 . 8 . 10 Part Disruptions 3 | . . . . 1 . . . . . 1 . 1 Damage Taken 7581 | . 192 176 . 709 334 23 314 255 56 2219 112 3191 Core 3241 | . 74 14 . 132 25 . 128 69 38 1074 76 1611 Absorbed by Shields 119 | . . . . . 119 . . . . . . . Regen/Repaired (Parts) 28 | . . . . . . . . . . 28 . . Core Remaining (%) 76 | 100 . . . 12 95 100 84 93 96 17 94 . Volleys Fired 136 | 16 35 . . 39 6 . 2 . . 14 . 24 Largest 2 | 2 2 . . 2 1 . 1 . . 1 . 1 Hottest 125 | 80 100 . . 125 63 . 5 . . 94 . 120 Shots Fired 195 | 32 67 . . 50 6 . 2 . . 14 . 24 Gun 116 | 32 48 . . 19 3 . . . . 12 . 2 Cannon 49 | . 17 . . 8 3 . . . . . . 21 Launcher 25 | . . . . 23 . . . . . 2 . . Special 5 | . 2 . . . . . 2 . . . . 1 Kinetic 13 | . . . . . . . . . . . . 13 Thermal 149 | 32 67 . . 27 3 . . . . 12 . 8 Explosive 25 | . . . . 23 . . . . . 2 . . Electromagnetic 6 | . . . . . 3 . . . . . . 3 Robot Hit Streak 17 | 5 17 . . 5 5 . 4 . . 6 . 6 Robot Miss Streak 4 | 2 2 . . 4 1 . . . . 1 . 4 Penetration Max . | . . . . . . . . . . . . . Secondary Targets . | . . . . . . . . . . . . . Shots Hit Robots 160 | 18 43 . . 31 22 . 8 14 . 14 . 10 Core Hits 109 | 4 25 . . 33 12 . 2 8 . 8 7 10 Critical Kills . | . . . . . . . . . . . . . Critical Parts Destroyed . | . . . . . . . . . . . . . Critical Strikes 2 | . . . . . 1 . . . . . . 1 Blast 1 | . . . . . . . . . . . . 1 Sever 1 | . . . . . 1 . . . . . . . Melee Attacks 140 | . . . . 2 31 5 33 33 8 28 . . Impact . | . . . . . . . . . . . . . Slashing 140 | . . . . 2 31 5 33 33 8 28 . . Piercing . | . . . . . . . . . . . . . Sneak Attacks 12 | . . . . . 2 . 1 9 . . . . Combat Hostiles 1 | . . . . . . . 1 . . . . . Follow-up Attacks . | . . . . . . . . . . . . . Damage Inflicted 5427 | 205 556 1 . 1469 736 . 288 753 . 780 77 562 Guns 1150 | 205 342 . . 212 35 . . . . 350 . 6 Cannons 843 | . 212 . . 86 89 . . . . . . 456 Explosions 1431 | . . . . 1109 . . . . . 322 . . Melee 1747 | . . . . 62 612 . 216 753 . 104 . . Ramming 256 | . 2 1 . . . . 72 . . 4 77 100 Kinetic 156 | . . . . . . . . . . . . 156 Thermal 1714 | 205 554 . . 298 35 . . . . 350 . 272 Explosive 1431 | . . . . 1109 . . . . . 322 . . Electromagnetic 123 | . . . . . 89 . . . . . . 34 Impact . | . . . . . . . . . . . . . Slashing 1747 | . . . . 62 612 . 216 753 . 104 . . Piercing . | . . . . . . . . . . . . . Highest Corruption 27 | . . . . . . . 4 8 . 5 1 27 Average Corruption 7 | . . . . . . . 2 6 . 2 1 16 Corruption Purged 6 | . . . . . . . 1 1 . 4 . . Corruption Blocked . | . . . . . . . . . . . . . Effects 35 | . . . . . . . 7 3 . 2 1 22 Message Errors 14 | . . . . . . . 5 1 . 2 . 6 Matter Fused 4 | . . . . . . . 1 . . . . 3 Heat Flow Errors 1 | . . . . . . . . . . . . 1 Energy Discharges 3 | . . . . . . . . 1 . . . 2 Parts Rejected 1 | . . . . . . . . 1 . . . . Data Loss (minor) 4 | . . . . . . . 1 . . . 1 2 Data Loss (major) 2 | . . . . . . . . . . . . 2 Misdirections 6 | . . . . . . . . . . . . 6 Overload Shots . | . . . . . . . . . . . . . Overflow Damage 279 | . 7 . . 53 50 . 28 107 . 25 . 9 Projectiles 16 | . 7 . . . . . . . . . . 9 Explosions 60 | . . . . 53 . . . . . 7 . . Melee 203 | . . . . . 50 . 28 107 . 18 . . Knockbacks 3 | . . . . . . . . . . . 2 1 Impact 2 | . . . . . . . . . . . 2 . Kinetic 1 | . . . . . . . . . . . . 1 Secondary . | . . . . . . . . . . . . . Self-Inflicted Damage 321 | . . . . 85 . . 72 . . 80 36 48 Shots 5 | . . . . 4 . . . . . 1 . . Rammed 19 | . 1 1 . . . . . . . 1 9 7 Targets Rammed 19 | . 1 1 . . . . . . . 1 9 7 Kicked . | . . . . . . . . . . . . . Crushed . | . . . . . . . . . . . . . Highest Temperature 364 | 90 153 7 . 220 66 . . . . 364 . 184 Average Temperature 54 | 29 42 7 . 73 29 . . . . 100 . 79 Received Heat Transfer 946 | . 111 63 . 112 185 . . 9 . 457 . 9 Effects 1 | . . . . . . . . . . 1 . . Shutdowns 1 | . . . . . . . . . . 1 . . Siege Activations . | . . . . . . . . . . . . . Martial Activations . | . . . . . . . . . . . . . Shielding Activations . | . . . . . . . . . . . . . Robots Disrupted . | . . . . . . . . . . . . . Combat Hostiles . | . . . . . . . . . . . . . Robots Corrupted . | . . . . . . . . . . . . . Combat Hostiles . | . . . . . . . . . . . . . Parts Fried . | . . . . . . . . . . . . . Impact Corruptions . | . . . . . . . . . . . . . Robots Melted . | . . . . . . . . . . . . . Combat Hostiles . | . . . . . . . . . . . . . Parts Melted 1 | . . . . 1 . . . . . . . . Heat Transferred 3026 | 475 1219 . . 666 74 . . . . 407 . 185 Parts Sabotaged . | . . . . . . . . . . . . . Parts Stolen . | . . . . . . . . . . . . . Parts Stripped . | . . . . . . . . . . . . . Power Chain Reactions . | . . . . . . . . . . . . . Alert | -11 -10 -10 -10 -9 -8 -7 -6 -5 -4 -3 -2 -1 ------- Run | Yrd Mat Min Exi Min Mat Fac Fac Fac Fac Res Res Acc Maximum Alert Level 1 | . . . . . . . . . . 1 . . Low Security (%) 99 | 100 100 100 . 100 100 100 100 100 100 88 100 100 Level 1 . | . . . . . . . . . . 11 . . Level 2 . | . . . . . . . . . . . . . Level 3 . | . . . . . . . . . . . . . Level 4 . | . . . . . . . . . . . . . Level 5 . | . . . . . . . . . . . . . High Security . | . . . . . . . . . . . . . Max Security . | . . . . . . . . . . . . . Peak Influence 259 | 5 99 68 . 38 124 38 117 94 52 259 124 182 Initial 109 | . . 25 . . . 38 . 19 44 . 109 56 Average 28 | . 23 8 . 5 47 4 26 14 8 36 87 26 Influence Increases 2377 | 15 314 78 . 171 337 21 267 283 64 431 85 311 Destroy 0b10 Robot/C 660 | . 180 60 . 60 140 . 40 20 . 80 . 80 Destroy 0b10 Robot/NC 115 | 15 25 . . 5 10 . . 30 . . 10 20 Destroy Leader 148 | . 56 10 . 10 32 . 10 10 . 10 . 10 Allied During Kill 8 | . . 8 . . . . . . . . . . Successful Hack 187 | . 22 . . . 12 16 12 37 48 40 . . Disable Machine 90 | . 15 . . . 30 . . . . 30 . 15 Destroy Structure 284 | . 1 . . 96 8 5 25 36 16 76 . 21 Partial Spotted 120 | . . . . . . . 45 30 . 15 30 . Lose Combat Pursuer 765 | . 15 . . . 105 . 135 120 . 180 45 165 Influence Decreases 2205 | 15 249 143 . 171 251 107 226 234 154 236 186 233 Entered New Map 280 | . . 40 . . . 48 . 22 46 . 86 38 Time Decay 1651 | 15 249 103 . 125 251 59 196 172 108 143 100 130 Lost Part 274 | . . . . 46 . . 30 40 . 93 . 65 Squads Dispatched 24 | . 2 . . . 1 1 6 1 3 4 1 5 Investigation 4 | . 1 . . . . . 1 . 2 . . . Extermination 10 | . . . . . . 1 3 1 1 2 . 2 Reinforcement 10 | . 1 . . . 1 . 2 . . 2 1 3 Assault . | . . . . . . . . . . . . . Garrison . | . . . . . . . . . . . . . Intercept . | . . . . . . . . . . . . . Searches Triggered . | . . . . . . . . . . . . . Construction Impeded 2 | . . . . . . . . . . 1 . 1 Haulers Reinforced . | . . . . . . . . . . . . . Active Scanning Responses . | . . . . . . . . . . . . . Cargo Convoy Interrupts . | . . . . . . . . . . . . . Stealth | -11 -10 -10 -10 -9 -8 -7 -6 -5 -4 -3 -2 -1 --------- Run | Yrd Mat Min Exi Min Mat Fac Fac Fac Fac Res Res Acc Distress Signals 10 | . 1 . . . 1 . 1 2 1 1 2 1 Communications Jammed . | . . . . . . . . . . . . . Distress Signals . | . . . . . . . . . . . . . Times Spotted 155 | . 24 5 . 17 14 3 13 14 5 22 9 29 Peak Tracking Total 14 | . 4 3 . 9 4 3 9 5 6 14 5 11 Tactical Retreats 30 | . 1 . . 1 5 . 4 4 1 5 1 8 Traps | -11 -10 -10 -10 -9 -8 -7 -6 -5 -4 -3 -2 -1 ------- Run | Yrd Mat Min Exi Min Mat Fac Fac Fac Fac Res Res Acc Traps Triggered 3 | . 1 . . . . . . 1 . . 1 . Indirectly . | . . . . . . . . . . . . . Trap Hack Attempts . | . . . . . . . . . . . . . Triggered . | . . . . . . . . . . . . . Disarmed . | . . . . . . . . . . . . . Reprogrammed . | . . . . . . . . . . . . . Reused . | . . . . . . . . . . . . . Traps Extracted . | . . . . . . . . . . . . . Installed . | . . . . . . . . . . . . . Triggered . | . . . . . . . . . . . . . Machines | -11 -10 -10 -10 -9 -8 -7 -6 -5 -4 -3 -2 -1 ---------- Run | Yrd Mat Min Exi Min Mat Fac Fac Fac Fac Res Res Acc Machines Disabled 6 | . 1 . . . 2 . . . . 2 . 1 Max in Single Turn 2 | . 1 . . . 1 . . . . 2 . 1 Garrison Access 5 | . . . . . 1 . 1 1 1 . 1 . Machines Repaired . | . . . . . . . . . . . . . Machines Dismantled . | . . . . . . . . . . . . . Machines Sabotaged . | . . . . . . . . . . . . . Overloaded Fab Kills . | . . . . . . . . . . . . . Hacking | -11 -10 -10 -10 -9 -8 -7 -6 -5 -4 -3 -2 -1 --------- Run | Yrd Mat Min Exi Min Mat Fac Fac Fac Fac Res Res Acc Machines Accessed 49 | . 10 . 1 . 6 5 5 5 7 7 2 1 Terminals 31 | . 7 . . . 4 5 2 2 4 5 1 1 Fabricators 1 | . . . . . . . . . 1 . . . Repair Stations 2 | . 1 . . . . . . . . 1 . . Recycling Units 4 | . 2 . . . . . . 1 1 . . . Scanalyzers 3 | . . . . . 1 . 1 1 . . . . Garrison Access 7 | . . . . . 1 . 2 1 1 1 1 . Total Hacks 143 | . 35 . 1 . 19 15 10 16 19 21 3 4 Successful 76 | . 20 . 1 . 8 8 4 12 10 8 3 2 Failed 66 | . 14 . . . 11 7 6 4 9 13 . 2 Catastrophic 5 | . 2 . . . 1 . . . 1 . . 1 Database Lockouts 1 | . 1 . . . . . . . . . . . Manual 94 | . 29 . 1 . 15 14 3 9 13 9 . 1 Terminals 109 | . 29 . . . 15 15 4 9 13 18 2 4 Fabricators 2 | . . . . . . . . . 2 . . . Repair Stations 3 | . 1 . . . . . . . . 2 . . Recycling Units 10 | . 5 . . . . . . 3 2 . . . Scanalyzers 7 | . . . . . 2 . 2 3 . . . . Garrison Access 11 | . . . . . 2 . 4 1 2 1 1 . Terminal Hacks 26 | . 7 . 1 . 1 3 . 4 3 3 2 2 Record 7 | . . . . . . . . 1 2 1 2 1 Part Schematic 1 | . . . . . . 1 . . . . . . Prototype ID Bank 2 | . 2 . . . . . . . . . . . Open DSF 1 | . . . . . . 1 . . . . . . Level Access Points 1 | . . . . . . . . . . 1 . . Branch Access Points 1 | . 1 . . . . . . . . . . . Terminal Index 5 | . . . . . 1 1 . 1 1 . . 1 Alert Level 2 | . 1 . . . . . . 1 . . . . Locate Traps 2 | . 1 . . . . . . . . 1 . . Investigation Status 2 | . 1 . . . . . . 1 . . . . Hauler Manifests 1 | . 1 . . . . . . . . . . . Proto ID Catalog 1 | . . . 1 . . . . . . . . . Fabricator Hacks 2 | . . . . . . . . . 2 . . . Load Schematic 1 | . . . . . . . . . 1 . . . Build 1 | . . . . . . . . . 1 . . . Repair Station Hacks 3 | . 1 . . . . . . . . 2 . . Scan Component 2 | . 1 . . . . . . . . 1 . . Repair 1 | . . . . . . . . . . 1 . . Recycling Unit Hacks 2 | . 1 . . . . . . 1 . . . . Report Inventory 1 | . 1 . . . . . . . . . . . Retrieve Matter 1 | . . . . . . . . 1 . . . . Scanalyzer 6 | . . . . . 2 . 2 2 . . . . Insert Component 3 | . . . . . 1 . 1 1 . . . . Analyze 3 | . . . . . 1 . 1 1 . . . . Garrison Access Hacks 5 | . . . . . 1 . 1 1 1 . 1 . Seal Access 5 | . . . . . 1 . 1 1 1 . 1 . Unauthorized Hacks 32 | . 11 . . . 4 5 1 4 4 3 . . Terminals 25 | . 7 . . . 4 5 1 2 3 3 . . Botnet 23 | . 6 . . . 4 4 1 2 3 3 . . Operators 2 | . 1 . . . . 1 . . . . . . Fabricators . | . . . . . . . . . . . . . Repair Stations . | . . . . . . . . . . . . . Recycling Units 7 | . 4 . . . . . . 2 1 . . . Reject 4 | . 2 . . . . . . 1 1 . . . Mask 3 | . 2 . . . . . . 1 . . . . Scanalyzers . | . . . . . . . . . . . . . Garrison Access . | . . . . . . . . . . . . . Data Cores Recovered 1 | . 1 . . . . . . . . . . . Used . | . . . . . . . . . . . . . Hacking Detections 40 | . 9 . . . 6 4 4 3 6 6 1 1 Full Trace Events 3 | . . . . . . . 1 . 2 . . . Feedback Events . | . . . . . . . . . . . . . Feedback Blocked . | . . . . . . . . . . . . . Robot Schematics Acquired . | . . . . . . . . . . . . . Robots Built . | . . . . . . . . . . . . . Authchips . | . . . . . . . . . . . . . Time . | . . . . . . . . . . . . . Total Robot Build Rating . | . . . . . . . . . . . . . Part Schematics Acquired 4 | . . . . . 1 1 1 1 . . . . Parts Built 1 | . . . . . . . . . 1 . . . Authchips . | . . . . . . . . . . . . . Time 134 | . . . . . . . . . 134 . . . Total Part Build Rating 4 | . . . . . . . . . 4 . . . Parts Repaired 1 | . . . . . . . . . . 1 . . Time 70 | . . . . . . . . . . 70 . . Parts Recycled . | . . . . . . . . . . . . . Recycled Matter . | . . . . . . . . . . . . . Retrieved Matter . | . . . . . . . . . . . . . Retrieved Components . | . . . . . . . . . . . . . Parts Scanalyzed 3 | . . . . . 1 . 1 1 . . . . Part Schematics Acquired 3 | . . . . . 1 . 1 1 . . . . Parts Damaged . | . . . . . . . . . . . . . Bothacking | -11 -10 -10 -10 -9 -8 -7 -6 -5 -4 -3 -2 -1 ------------ Run | Yrd Mat Min Exi Min Mat Fac Fac Fac Fac Res Res Acc Used RIF Installer . | . . . . . . . . . . . . . Robots Hacked 1 | . . . . . . . 1 . . . . . Non-combat 1 | . . . . . . . 1 . . . . . Combat . | . . . . . . . . . . . . . Robot Hacks Applied 2 | . . . . . . . 2 . . . . . find_chute 2 | . . . . . . . 2 . . . . . Relay Couplers Released . | . . . . . . . . . . . . . Fabnet Peak Effective % . | . . . . . . . . . . . . . Robots Rewired . | . . . . . . . . . . . . . Allies Hacked . | . . . . . . . . . . . . . Hacks Repelled . | . . . . . . . . . . . . . Allies | -11 -10 -10 -10 -9 -8 -7 -6 -5 -4 -3 -2 -1 -------- Run | Yrd Mat Min Exi Min Mat Fac Fac Fac Fac Res Res Acc Total Allies 2 | . . 2 . . . . . . . . . . Largest Group 2 | . . 2 . . . . . . . . . . Highest-Rated Group 41 | . . 41 . . . . . . . . . . Highest-Rated Ally 31 | . . 31 . . . . . . . . . . Total Orders . | . . . . . . . . . . . . . Ally Attacks 9 | . . 9 . . . . . . . . . . Total Damage 143 | . . 143 . . . . . . . . . . Kills 3 | . . 3 . . . . . . . . . . Allies Corrupted . | . . . . . . . . . . . . . Allies Melted 1 | . . . . 1 . . . . . . . . Intel | -11 -10 -10 -10 -9 -8 -7 -6 -5 -4 -3 -2 -1 ------- Run | Yrd Mat Min Exi Min Mat Fac Fac Fac Fac Res Res Acc Active Infowar (turns) 11772 | 88 2313 663 586 540 3174 428 1710 816 536 707 1 210 Sensors 1283 | . . 663 586 34 . . . . . . . . Terrain 7862 | . . . . 506 3174 428 1710 816 536 692 . . Seismic 2402 | 88 2313 . . . . . . . . . 1 . T.N.C. 1865 | . . . . . . 407 1458 . . . . . Cloaking 991 | . . . . . . . 2 . 339 650 . . Jamming 20 | . . . . . . . 1 . 17 2 . . ECM 461 | . . . . . . . . . 229 22 . 210 Robot Analysis Total . | . . . . . . . . . . . . . Derelict Logs Recovered 1 | . . 1 . . . . . . . . . . Drone Launches . | . . . . . . . . . . . . . Drone Recoveries . | . . . . . . . . . . . . . Exploration | -11 -10 -10 -10 -9 -8 -7 -6 -5 -4 -3 -2 -1 ------------- Run | Yrd Mat Min Exi Min Mat Fac Fac Fac Fac Res Res Acc Turns Passed 13026 | 155 2601 663 586 624 3216 428 1710 816 536 864 203 624 Spaces Moved 10063 | 64 1280 391 366 270 1017 921 1508 1131 669 1018 439 989 Core 191 | 22 . . . . . . . . . 96 . 73 Treads 2699 | 42 1280 391 366 270 350 . . . . . . . Legs 3 | . . . . . . . . . . . 3 . Wheels 675 | . . . . . 667 8 . . . . . . Hover 327 | . . . . . . . . . . . . 327 Flight 6168 | . . . . . . 913 1508 1131 669 922 436 589 Fastest Speed 20 | 50 160 160 160 160 130 29 29 29 29 29 20 20 Average Speed 72 | 126 160 160 160 160 141 31 29 29 30 33 34 36 Slowest Speed 250 | 160 160 160 160 160 240 130 97 29 32 250 120 200 Overloaded Moves . | . . . . . . . . . . . . . Propulsion Burnouts . | . . . . . . . . . . . . . Robots Hopped 4 | . . . . . . . 1 . 1 . 2 . Potential Cave-ins 11 | . . . . . . . . . . 11 . . Cave-ins Triggered 1 | . . . . . . . . . . 1 . . Exploration Rate (%) 36 | 6 95 66 78 55 34 15 25 21 16 26 13 20 Regions Visited 12 Branch Regions 3 Pre-discovered Areas . | . . . . . . . . . . . . . Known Exits Taken 7 | . 1 . . . 1 1 1 1 1 1 . . Unknown Exits Taken 5 | 1 . 1 1 1 . . . . . . 1 . Scrap Searched 2 | . . . . 2 . . . . . . . . Spaces Dug 88 | . . . . . 8 5 24 18 8 25 . . Terrain Destroyed 290 | . . . . 168 8 5 25 18 8 49 . 9 Melee 88 | . . . . . 8 5 24 18 8 25 . . Projectile 9 | . . . . . . . . . . . . 9 AOE 192 | . . . . 168 . . . . . 24 . . Terrain Rammed 1 | . . . . . . . 1 . . . . . Walls Destroyed 1 | . . . . . . . 1 . . . . . Machines Disabled . | . . . . . . . . . . . . . Actions | -11 -10 -10 -10 -9 -8 -7 -6 -5 -4 -3 -2 -1 --------- Run | Yrd Mat Min Exi Min Mat Fac Fac Fac Fac Res Res Acc Total 15362 | 106 1765 426 367 407 2747 1056 2725 1575 989 1478 490 1231 Wait 4642 | 9 404 31 . 80 1637 100 1150 374 288 389 7 173 Move 10043 | 63 1279 390 365 269 1016 920 1505 1130 666 1016 435 989 Hop 3 | . . . . . . . 1 . 1 . 1 . Pick Up 125 | 11 22 1 1 5 21 6 10 12 5 4 12 15 Fast Attach 19 | 1 1 . . . 1 1 . 2 3 7 2 1 Attach 82 | 6 . . . 5 4 6 8 9 8 11 12 13 Detach 19 | . . . . . 1 1 1 5 5 1 4 1 Swap 48 | . 9 3 . 6 12 6 10 . . 2 . . Drop 84 | . 14 . 1 1 18 11 4 10 5 4 8 8 Fire 136 | 16 35 . . 39 6 . 2 . . 14 . 24 Melee 140 | . . . . 2 31 5 33 33 8 28 . . Ram 18 | . . . . . . . 1 . . 1 9 7 Kick . | . . . . . . . . . . . . . Crush 2 | . 1 1 . . . . . . . . . . Escape Stasis 1 | . . . . . . . . . . 1 . . Rewire . | . . . . . . . . . . . . . Trap . | . . . . . . . . . . . . . Miscellaneous . | . . . . . . . . . . . . . Route ------- -11/Scrapyard -10/Materials (discovered 4 exits: *Mat x3 / *Min) -10/Mines (discovered 3 exits: *Mat x2 / *Exi) -10/Exiles -9/Mines -8/Materials -7/Factory -6/Factory (discovered 2 exits: *Fac / *Low) -5/Factory (discovered 2 exits: *Fac x2) -4/Factory -3/Research (discovered 3 exits: *Res x3) -2/Research -1/Access History --------- Turn | Location | Event 3 | -11/Scrapyard | Discovered new exit (range 15) 156 | -11/Scrapyard | Entered Materials 305 | -10/Materials | Build established: Mutant 1023 | -10/Materials | Discovered new exit (range 5) 1156 | -10/Materials | Discovered new exit (range 9) 1397 | -10/Materials | Discovered new exit (range 11) 1574 | -10/Materials | Discovered new exit (range 15) 2177 | -10/Materials | Identified exit to Mines 2177 | -10/Materials | Central database locked down 2685 | -10/Materials | Identified exit to Materials 2757 | -10/Materials | Entered Mines 2978 | -10/Mines | Received a Rocket Launcher from a helpful Derelict 2996 | -10/Mines | Discovered exit to Materials (range 9) 3027 | -10/Mines | Learned Materials emergency access door positions 3181 | -10/Mines | Discovered exit to Materials (range 8) 3413 | -10/Mines | Deemed a non-threat by the Exiles lab entrance 3413 | -10/Mines | Discovered new exit (range 5) 3420 | -10/Mines | Entered Exiles 3459 | -10/Exiles | Met 8R-AWN 3486 | -10/Exiles | Met EX-HEX 3548 | -10/Exiles | Met EX-DEC 3589 | -10/Exiles | Visited The Gauntlet 3696 | -10/Exiles | Met EX-BIN 3728 | -10/Exiles | Aligned with FarCom system 3729 | -10/Exiles | Given EX-Vault access code 3771 | -10/Exiles | Opened EX-Vault 3786 | -10/Exiles | Found Modified TNC 3817 | -10/Exiles | Warned to stay clear of 0b10 Research branches 3985 | -10/Exiles | Discovered new exit (range 14) 4006 | -10/Exiles | Left Exiles lab with Modified TNC 4006 | -10/Exiles | Entered Mines 4190 | -9/Mines | Lost 3 parts (2n1w) 4207 | -9/Mines | Assembled infested the area 4212 | -9/Mines | Assisted by a Guerilla fighting off Assembled 4259 | -9/Mines | Core integrity fell below 50% 4308 | -9/Mines | Destroyed 9 combat bots 4333 | -9/Mines | Core integrity fell below 20% 4564 | -9/Mines | Build established: Assassin 4609 | -9/Mines | Discovered new exit (range 10) 4630 | -9/Mines | Entered Materials 4630 | -8/Materials | Evolved 4 slots: Propulsion x2, Utility x2 5208 | -8/Materials | Discovered new exit (range 11) 6222 | -8/Materials | Build established: Scavenger-Assassin 6802 | -8/Materials | Identified exit to Factory 7846 | -8/Materials | Entered Factory 7846 | -7/Factory | Evolved 2 slots: Utility x2 8159 | -7/Factory | Identified exit to DSF 8173 | -7/Factory | Build established: Scavenger-Scout 8234 | -7/Factory | Discovered new exit (range 14) 8241 | -7/Factory | Identified exit to Factory 8274 | -7/Factory | Entered another Factory area 8274 | -6/Factory | Evolved 2 slots: Utility x2 8310 | -6/Factory | Discovered new exit (range 13) 8350 | -6/Factory | Identified exit to Lower Caves 9967 | -6/Factory | Discovered new exit (range 11) 9984 | -6/Factory | Identified exit to Factory 9984 | -6/Factory | Entered another Factory area 9984 | -5/Factory | Evolved 2 slots: Power x1, Utility x1 10348 | -5/Factory | Discovered new exit (range 18) 10354 | -5/Factory | Identified exit to Factory 10556 | -5/Factory | Build established: Hacker-Ninja 10609 | -5/Factory | Discovered exit to Factory (range 17) 10786 | -5/Factory | Lost 4 parts (1p1n2u) 10800 | -5/Factory | Entered another Factory area 10800 | -4/Factory | Evolved 2 slots: Utility x2 11253 | -4/Factory | Discovered new exit (range 18) 11287 | -4/Factory | Fabricated Cld. VTOL Module? 11336 | -4/Factory | Identified exit to Research 11336 | -4/Factory | Entered Research 11336 | -3/Research | Evolved 2 slots: Propulsion x1, Utility x1 11350 | -3/Research | Identified exit to Research 11855 | -3/Research | Repaired Cld. VTOL Module 11874 | -3/Research | Crushed by falling debris 12012 | -3/Research | Spotted B-86 Titan 12064 | -3/Research | Released all parts (12) 12093 | -3/Research | Lost 7 parts (1p1n4u1w) 12101 | -3/Research | Core integrity fell below 50% 12193 | -3/Research | Core integrity fell below 20% 12200 | -3/Research | Entered another Research area 12200 | -2/Research | Evolved 2 slots: Propulsion x1, Weapon x1 12206 | -2/Research | Lost 4 parts (1p1n2w) 12276 | -2/Research | Found Prototype Device 12276 | -2/Research | Identified Thermal Barrier 12388 | -2/Research | Discovered new exit (range 16) 12403 | -2/Research | Entered Access 12403 | -1/Access | Evolved 2 slots: Propulsion x1, Weapon x1 12620 | -1/Access | Build established: Sprinter 12656 | -1/Access | Found Gamma Bomb Array 12809 | -1/Access | System corruption reached 10% 12818 | -1/Access | Spotted B-99 Colossus 12895 | -1/Access | Core integrity fell below 50% 12945 | -1/Access | Core integrity fell below 20% 12948 | -1/Access | Lost 9 parts (1p4n2u2w) 13027 | -1/Access | Destroyed by P-80 Master with Gamma Rifle Last Messages --------------- 12992_ System corrupted: Matter fused (-6). 12995_ Slug penetrates R-10 Processor. 12995_ R-10 Processor knocked back. 12997_ Acquired 7 matter. 13007_ System corrupted: Component data lost. 13008_ S-43 Plague destroyed. 13010_ U-05 Engineer builds a Wall. 13011_ Acquired Xenon Bombardment Thruster. 13014_ U-05 Engineer builds a Wall. 13016_ Acquired 8 matter. 13017_ Slug penetrates Hyperwave Decoder. 13019_ Hyperwave Decoder disabled. 13021_ U-05 Engineer builds a Wall. 13024_ Slug penetrates Hyperwave Decoder. 13024_ Slug penetrates H-88 Terminator. 13024_ Penetrated by Slug. 13024_ Antigrav Array destroyed. 13024_ Penetrated by Slug. 13026_ KZ YMHM9043|XFK3S2|V&PXW3/EAPS= 13027_ Dropped Hvy. Gauss Cannon. Map ----- +----------------------------------------------------+ | ?????????????????????????????????????????????????? | | ?????????????????????????????????????????????????? | | ?????????????????????????????????????????????????? | | ?????????????????????????????????????????????????? | | ?????????????????????????????????????????????????? | | ?????????????????????????????????????????????????? | | ?????????????????????????????????????????????????? | | ?????????????????????????????????????????????????? | | ?????????????????????????????????????????????????? | | ?????????????????????????????????????????????????? | | ?????????????????????H???????????????????????????? | | ?????????????????????????????????????????????????? | | ?????????????????????????????????????????????????? | | ?????????????????????????????????????????????????? | | ?????????????????????????????????????????????????? | | ?????????????????????????????????????????????????? | | ?????????????????????????????????????????????????? | | ??????????????????????s??????????????????????????? | | ????????????????????# ???????????????????????????? | | ???????????????????? ???????????????????????????? | | ??????????????????###+##########?????????????????? | | ??????????????????# h #?????????????????? | | ??????????????????? #?????????????????? | | ??????????????????#"""""ph #?????????????????? | | ??????????????????#""""" #?????????????????? | | ??????????????????#"""" @ #?????????????????? | | ??????????????????#""""" #?????????????????? | | ??????????????????#""""" #?????????????????? | | ??????????????????# #?????????????????? | | ??????????????????# #?????????????????? | | ????????????Y?????# #?????????????????? | | ?????????????????## #?????????????????? | | ?????????????????## [ % #?????????????????? | | ?????????????????#####u#########?????????????????? | | ????????????????????##p%#????????????????????????? | | ?????????????????????#%%#????????????????????????? | | ?????????????????????# # ????????????????????????? | | ?????????????????????#p# ????????????????????????? | | ?????????????????????# ###???????????????????????? | | ?????????????????????# #?????????????????????????? | | ?????????????????????# #?????????????????????????? | | ?????????????????????# #?????????????????????????? | | ?????????????????????# #?????????????????????????? | | ?????????????????????# ###########+########??????? | | ?????????????????????# #?????? | | ??????????????????####+##### ?????? | | ??????????????????# ## ?????? | | ??????????????????# ## ?????? | | ??????????????????# ## ?????? | | ??????????????????# ## ?????? | +----------------------------------------------------+ Best States ------------- Heat Dissipation 52 Energy Generation 28 Energy Capacity 350 Matter Stores 300 Matter Capacity 300 Sight Range 16 Robot Scan Range 14 Terrain Scan Range 20 Terrain Scan Density 210 ECM Strength 1 Jamming Range 12 Cloak Strength 3 Additional Mass Support 9 Armor Coverage 150 Evasion (%) 66 Melee Accuracy 6 Recoil Reduction 3 Particle Charging 15 Offensive Hacking 24 Defensive Hacking 10 Item Schematics ----------------- Med. Storage Unit | -8/Materials | Scanalyzed Hacking Suite | -7/Factory | Hacked Imp. Flight Unit | -6/Factory | Scanalyzed Cld. VTOL Module | -5/Factory | Scanalyzed Robot Schematics ------------------ None Fabricated ------------ Cld. VTOL Module | x1 | -4/Factory Repaired ---------- Cld. VTOL Module | 53% | -3/Research Alien Tech Used ----------------- None Achievements -------------- Can't Catch Me Dangerous Findings Denied? Just What I Needed Omniscient Cartographer Origins Part-time Excavator Respectable Loadout Universal Adapter Challenges ------------ None Game ------ Seed MediumCoolingSegregator Manual? 0 Play Time 04:12:43 Cumulative 19.3 hours Start 2025.09.14 @ 04:45:30 End 2025.09.15 @ 19:06:40 Sessions 7 Manual Loads 0 Difficulty Rogue Special Mode None Game No. 9 Rogue 9 Adventurer 0 Explorer 0 Win Type - Total 0 Types 0/0/0/0/0/0/0/0/0/0 Lore% 18 Gallery% 17 Achievement% 21 Wizard Run 0 Options --------- Layout 1 ASCII 0 Keyboard 0 Movement Numpad Keybinds 0 Fullscreen 1 Font 24/Tamsyn Map View 50x35 Zoom Use 0% Tactical HUD 1 Map Filters NONE Filters NONE Steam 1 RUN: 2497fa1b-d3fa-40b0-8235-e61299198777